bitfinex/quotes_BTCUSD_20250803
["timestamp","ask_amount","ask_price","bid_price","bid_amount"]
[1754251564547,3.25950693,114470.0,114460.0,0.09287498]
[1754251564766,3.18436708,114470.0,114460.0,0.09287498]
[1754251565355,3.16257174,114470.0,114460.0,0.09287498]
[1754251565765,3.16357174,114470.0,114460.0,0.09287498]
[1754251565945,3.16457174,114470.0,114460.0,0.09287498]
[1754251566144,3.1508913,114470.0,114460.0,0.09287498]
[1754251569527,3.16457098,114470.0,114460.0,0.09287498]
[1754251573367,3.16455861,114470.0,114460.0,0.09287498]
[1754251574775,2.43006075,114470.0,114460.0,0.09287498]
[1754251574976,2.56458075,114470.0,114460.0,0.09287498]
[1754251575263,3.16439438,114470.0,114460.0,0.09287498]
[1754251575709,3.16339438,114470.0,114460.0,0.09287498]
[1754251575907,3.16239438,114470.0,114460.0,0.09287498]
[1754251576374,3.16239068,114470.0,114460.0,0.09287498]
[1754251576945,3.16243068,114470.0,114460.0,0.09287498]
[1754251577958,2.42805282,114470.0,114460.0,0.11787498]
[1754251578153,2.53625182,114470.0,114460.0,0.11787498]
[1754251578412,2.52257214,114470.0,114460.0,0.11787498]
[1754251578613,2.51441866,114470.0,114460.0,0.11787498]
[1754251578815,2.37993866,114470.0,114460.0,0.11787498]
[1754251578958,2.51441866,114470.0,114460.0,0.11787498]
[1754251579711,2.51441866,114470.0,114460.0,0.11887498]
[1754251580586,2.51441866,114470.0,114460.0,0.12087498]
[1754251581225,2.52809713,114470.0,114460.0,0.12087498]
[1754251581472,2.29297227,114470.0,114460.0,0.12087498]
[1754251582595,2.29297227,114470.0,114460.0,0.46087498]
[1754251584498,2.15849227,114470.0,114460.0,0.46087498]
[1754251584708,2.29289227,114470.0,114460.0,0.12087498]
[1754251585348,2.28677522,114470.0,114460.0,0.12087498]
[1754251586132,2.27309675,114470.0,114460.0,0.12087498]
[1754251587173,2.279206,114470.0,114460.0,0.12087498]
[1754251587385,2.27309675,114470.0,114460.0,0.12087498]
[1754251587598,2.27309675,114470.0,114460.0,0.14587498]
[1754251588020,2.27309675,114470.0,114460.0,0.14805914]
[1754251588226,2.27920625,114470.0,114460.0,0.14805914]
[1754251588685,2.95377497,114470.0,114460.0,0.14805914]
[1754251589101,2.96745302,114470.0,114460.0,0.14805914]
[1754251590881,2.96743973,114470.0,114460.0,0.14805914]
[1754251593424,2.29287101,114470.0,114460.0,0.14805914]
[1754251593629,2.96743973,114470.0,114460.0,0.14805914]
[1754251594707,2.72313973,114470.0,114460.0,0.14805914]
[1754251595580,2.38857101,114470.0,114460.0,0.14805914]
[1754251595763,3.06313973,114470.0,114460.0,0.14805914]
[1754251596874,2.38857101,114470.0,114460.0,0.14805914]
[1754251597274,3.04946168,114470.0,114460.0,0.14805914]
[1754251598075,2.37489296,114470.0,114460.0,0.14805914]
[1754251598280,3.04946168,114470.0,114460.0,0.14805914]
[1754251599307,2.37489296,114470.0,114460.0,0.14805914]
[1754251599489,3.04946168,114470.0,114460.0,0.14805914]
[1754251600270,3.06313971,114470.0,114460.0,0.14805914]
[1754251601503,3.06511971,114470.0,114460.0,0.14805914]
[1754251602444,3.06512422,114470.0,114460.0,0.14805914]
[1754251605631,2.3905555,114470.0,114460.0,0.14805914]
[1754251605833,3.06512422,114470.0,114460.0,0.14805914]
[1754251606036,3.05144619,114470.0,114460.0,0.14805914]
[1754251606235,3.13241619,114470.0,114460.0,0.14805914]
[1754251608388,3.13241619,114470.0,114460.0,0.14587498]
[1754251610583,3.14609427,114470.0,114460.0,0.14587498]
[1754251611199,3.06516398,114470.0,114460.0,0.14805914]
[1754251612041,3.06318398,114470.0,114460.0,0.14805914]
[1754251612249,3.071347,114470.0,114460.0,0.14805914]
[1754251612659,3.073327,114470.0,114460.0,0.14805914]
[1754251612813,2.98995,114470.0,114460.0,0.14805914]
[1754251613782,3.07092,114470.0,114460.0,0.14805914]
[1754251615483,3.05724192,114470.0,114460.0,0.14805914]
[1754251619982,3.05724184,114470.0,114460.0,0.14805914]
[1754251620621,2.38267312,114470.0,114460.0,0.14805914]
[1754251620868,3.05724184,114470.0,114460.0,0.14805914]
[1754251622495,2.38267312,114470.0,114460.0,0.14805914]
[1754251622851,3.05724184,114470.0,114460.0,0.14805914]
[1754251624334,3.0490789,114470.0,114460.0,0.14805914]
[1754251627343,2.9681089,114470.0,114460.0,0.14805914]
[1754251628380,3.0490789,114470.0,114460.0,0.05757498]
[1754251630142,3.0490789,114470.0,114460.0,0.05975914]
[1754251630348,3.0490789,114470.0,114460.0,0.13857914]
[1754251630552,2.9150789,114470.0,114460.0,0.13857914]
[1754251630772,3.0489589,114470.0,114460.0,0.13857914]
[1754251631801,3.06263682,114470.0,114460.0,0.13857914]
[1754251632012,3.06263682,114470.0,114460.0,0.13639498]
[1754251632651,2.72263682,114470.0,114460.0,0.13639498]
[1754251634449,2.0480681,114470.0,114460.0,0.13639498]
[1754251634653,2.72263682,114470.0,114460.0,0.13639498]
[1754251635078,2.72263682,114470.0,114460.0,0.13331498]
[1754251635496,2.70019264,114470.0,114460.0,0.13331498]
[1754251635681,2.72263423,114470.0,114460.0,0.13331498]
[1754251635880,2.70895631,114470.0,114460.0,0.13331498]
[1754251636294,2.03438759,114470.0,114460.0,0.13331498]
[1754251636509,2.70895619,114470.0,114460.0,0.13654498]
[1754251636709,2.70895619,114470.0,114460.0,0.13331498]
[1754251638913,3.04895619,114470.0,114460.0,0.13331498]
[1754251639137,3.04895619,114470.0,114460.0,0.13654498]
[1754251639356,3.04895619,114470.0,114460.0,0.05757498]
[1754251639549,3.04895576,114470.0,114460.0,0.13719498]
[1754251640515,2.37438704,114470.0,114460.0,0.13719498]
[1754251641002,3.04895576,114470.0,114460.0,0.14042498]
[1754251642163,3.0326346,114470.0,114460.0,0.14042498]
[1754251642363,3.04895407,114470.0,114460.0,0.14042498]
[1754251645772,2.17827135,114470.0,114460.0,0.14042498]
[1754251645994,2.85284007,114470.0,114460.0,0.14042498]
[1754251646171,2.17827135,114470.0,114460.0,0.14042498]
[1754251646378,2.85284007,114470.0,114460.0,0.14042498]
[1754251646605,2.85284007,114470.0,114460.0,0.14241498]
[1754251647145,2.77187007,114470.0,114460.0,0.14241498]
[1754251650451,2.85037007,114470.0,114460.0,0.14241498]
[1754251656830,2.85036769,114470.0,114460.0,0.14241498]
[1754251658684,2.77186769,114470.0,114460.0,0.14241498]
[1754251659115,1.96273897,114470.0,114460.0,0.14241498]
[1754251659316,0.36243697,114470.0,114460.0,0.14459914]
[1754251659530,0.02243697,114470.0,114460.0,0.81916786]
[1754251659735,0.02243697,114470.0,114460.0,0.8169837]
[1754251660799,0.0163178,114470.0,114460.0,0.8169837]
[1754251661599,1.600302,114470.0,114460.0,0.8169837]
[1754251661935,0.37384742,114480.0,114460.0,0.8169837]
[1754251662182,0.376147,114480.0,114470.0,0.94103269]
[1754251662414,0.376147,114480.0,114470.0,0.94096872]
[1754251662625,0.35372531,114480.0,114470.0,0.94096872]
[1754251662881,0.0300271,114480.0,114470.0,0.94096872]
[1754251663300,0.01372531,114480.0,114470.0,0.96723872]
[1754251663502,0.01372531,114480.0,114470.0,0.29267]
[1754251663804,0.01372531,114480.0,114470.0,0.29567]
[1754251663974,0.03002243,114480.0,114470.0,0.29567]
[1754251664400,0.01372531,114480.0,114470.0,0.29567]
[1754251665495,0.01372531,114480.0,114470.0,0.2714]
[1754251665734,0.68829403,114480.0,114470.0,0.2714]
[1754251665902,0.67461625,114480.0,114470.0,0.2714]
[1754251667202,4.753e-05,114480.0,114470.0,0.2714]
[1754251667469,0.67461625,114480.0,114470.0,0.2714]
[1754251670095,0.68829199,114480.0,114470.0,0.2714]
[1754251671074,0.01372327,114480.0,114470.0,0.2714]
[1754251671473,0.68829199,114480.0,114470.0,0.2714]
[1754251672583,0.01372327,114480.0,114470.0,0.94596872]
[1754251673207,0.6265309,114490.0,114480.0,0.025]
[1754251673421,0.98280217,114490.0,114480.0,0.02942824]
[1754251673604,0.35627127,114490.0,114480.0,0.02942824]
[1754251673810,0.35627127,114490.0,114480.0,0.11010824]
[1754251673811,1.03083999,114490.0,114480.0,0.11010824]
[1754251674043,1.01456872,114490.0,114480.0,0.11010824]
[1754251674861,1.01456872,114490.0,114480.0,0.10792446]
[1754251675096,1.01456872,114490.0,114480.0,0.10892446]
[1754251675306,1.01456872,114490.0,114480.0,0.10992446]
[1754251675518,0.8056273,114500.0,114480.0,0.13492446]
[1754251675701,2.86183427,114500.0,114490.0,0.05]
[1754251675909,2.86183427,114500.0,114490.0,0.13068]
[1754251676070,2.86251427,114500.0,114490.0,0.26628]
[1754251676932,2.86351427,114500.0,114490.0,0.26628]
[1754251677335,1.05105227,114500.0,114490.0,0.26628]
[1754251677927,0.37648355,114500.0,114490.0,0.26628]
[1754251678134,1.05105227,114500.0,114490.0,0.26628]
[1754251678456,0.37038226,114500.0,114490.0,0.26628]
[1754251678604,0.35727012,114500.0,114490.0,0.94084872]
[1754251678812,0.341,114500.0,114490.0,0.26628]
[1754251679294,0.35367446,114500.0,114490.0,0.26628]
[1754251679527,0.35367446,114500.0,114490.0,0.26728]
[1754251679704,0.35367446,114500.0,114490.0,0.26628]
[1754251680111,0.35367446,114500.0,114490.0,0.27028]
[1754251680318,0.01367446,114500.0,114490.0,0.27028]
[1754251682194,0.54254199,114510.0,114490.0,0.27028]
[1754251682396,1.600302,114500.0,114490.0,0.1896]
[1754251682858,0.67456872,114500.0,114490.0,0.1896]
[1754251683076,0.67456872,114500.0,114490.0,0.1368]
[1754251683275,0.67456872,114500.0,114490.0,0.26824]
[1754251683692,0.67524872,114500.0,114490.0,0.1358]
[1754251683897,2.27597072,114500.0,114490.0,0.18648]
[1754251684099,2.27555072,114500.0,114490.0,0.18648]
[1754251684304,2.31110072,114500.0,114490.0,0.18648]
[1754251684713,2.27555072,114500.0,114490.0,0.18548]
[1754251684921,2.27555072,114500.0,114490.0,0.26307]
[1754251685123,2.27555072,114500.0,114490.0,0.26507]
[1754251685755,2.27555072,114500.0,114490.0,0.26816]
[1754251685966,2.27555072,114500.0,114490.0,0.26507]
[1754251686374,1.600982,114500.0,114490.0,0.26507]
[1754251686577,2.27555072,114500.0,114490.0,0.26507]
[1754251687612,2.27555072,114500.0,114490.0,0.26816]
[1754251687974,2.08101472,114500.0,114490.0,0.26816]
[1754251688183,2.08101472,114500.0,114490.0,0.27028]
[1754251689435,2.11096911,114500.0,114490.0,0.27028]
[1754251690003,2.08101472,114500.0,114490.0,0.27028]
[1754251690533,0.67456872,114500.0,114490.0,0.27028]
[1754251691385,2.56767951,114510.0,114500.0,0.025]
[1754251691596,2.59821081,114510.0,114500.0,0.025]
[1754251691798,2.46465081,114510.0,114500.0,0.10486]
[1754251691973,2.46465081,114510.0,114500.0,0.132]
[1754251692421,2.46465081,114510.0,114500.0,0.12986]
[1754251692625,2.46465081,114510.0,114500.0,0.13186]
[1754251692810,3.13921904,114510.0,114500.0,0.13186]
[1754251693100,2.46465032,114510.0,114500.0,0.13186]
[1754251695450,2.46465032,114510.0,114500.0,0.12876]
[1754251695683,3.17760904,114510.0,114500.0,0.16056]
[1754251695913,3.17760904,114510.0,114500.0,0.027]
[1754251695914,3.36524075,114510.0,114500.0,0.027]
[1754251696134,3.33809857,114510.0,114500.0,0.027]
[1754251697549,2.46465058,114510.0,114500.0,0.027]
[1754251697769,2.59821058,114510.0,114500.0,0.10686]
[1754251698914,2.52288834,114510.0,114500.0,0.10686]
[1754251699147,2.52288834,114510.0,114500.0,0.13186]
[1754251699348,1.92364186,114510.0,114500.0,0.134]
[1754251699513,1.79008186,114510.0,114500.0,0.134]
[1754251699718,2.38932834,114510.0,114500.0,0.134]
[1754251700744,1.79008186,114510.0,114500.0,0.134]
[1754251701528,2.38932834,114510.0,114500.0,0.134]
[1754251702336,2.38933484,114510.0,114500.0,0.134]
[1754251705636,1.79008836,114510.0,114500.0,0.134]
[1754251705846,2.38933484,114510.0,114500.0,0.134]
[1754251706678,0.98288884,114510.0,114500.0,0.134]
[1754251708333,0.98289399,114510.0,114500.0,0.134]
[1754251710885,0.98289778,114510.0,114500.0,0.134]
[1754251713859,0.96050131,114510.0,114500.0,0.134]
[1754251714018,0.98291393,114510.0,114500.0,0.134]
[1754251718148,0.98291393,114510.0,114500.0,0.13186]
[1754251718837,1.73209389,114510.0,114500.0,0.13186]
[1754251720868,3.30737989,114510.0,114500.0,0.027]
[1754251721078,3.36145134,114510.0,114500.0,0.002]
[1754251721285,3.36145134,114510.0,114500.0,0.027]
[1754251721911,3.36145134,114510.0,114500.0,0.002]
[1754251722132,4.05444142,114510.0,114500.0,0.002]
[1754251722464,3.36145134,114510.0,114500.0,0.002]
[1754251722707,2.63133615,114510.0,114500.0,0.002]
[1754251724769,2.63133615,114510.0,114500.0,0.001]
[1754251724991,2.63133615,114510.0,114490.0,0.025]
[1754251725176,2.19342253,114500.0,114490.0,0.025]
[1754251725402,2.25946519,114500.0,114490.0,0.025]
[1754251725821,2.2731402,114500.0,114490.0,0.025]
[1754251726050,2.25946519,114500.0,114490.0,0.025]
[1754251726375,1.746446,114490.0,114480.0,0.02512446]
[1754251726577,2.50990416,114490.0,114480.0,0.02512446]
[1754251727686,2.50990416,114490.0,114480.0,0.02712446]
[1754251727900,2.50990416,114490.0,114480.0,0.10521446]
[1754251728102,2.5017637,114490.0,114480.0,0.10721446]
[1754251729437,2.17543915,114490.0,114480.0,0.10721446]
[1754251730266,2.1617637,114490.0,114480.0,0.10721446]
[1754251730561,2.1617637,114490.0,114480.0,0.10934446]
[1754251731407,2.16174978,114490.0,114480.0,0.10934446]
[1754251731850,2.50174978,114490.0,114480.0,0.10721446]
[1754251734396,2.50170771,114490.0,114480.0,0.10721446]
[1754251738769,1.90216263,114490.0,114480.0,0.10721446]
[1754251739005,2.50170771,114490.0,114480.0,0.10934446]
[1754251740359,2.5153835,114490.0,114480.0,0.10934446]
[1754251742821,2.59033243,114490.0,114480.0,0.10934446]
[1754251744883,2.5903212,114490.0,114480.0,0.10934446]
[1754251746675,2.6165952,114490.0,114480.0,0.10934446]
[1754251748059,2.5903212,114490.0,114480.0,0.10934446]
[1754251749131,2.59845793,114490.0,114480.0,0.10934446]
[1754251753225,1.79060392,114490.0,114480.0,0.13434446]
[1754251753453,2.46509793,114490.0,114480.0,0.13182446]
[1754251755837,2.45142214,114490.0,114480.0,0.13182446]
[1754251760625,2.45146686,114490.0,114480.0,0.13182446]
[1754251761075,2.45147809,114490.0,114480.0,0.13182446]
[1754251762346,2.45149439,114490.0,114480.0,0.13182446]
[1754251768177,3.16008859,114490.0,114480.0,0.02660446]
[1754251768389,3.21416004,114490.0,114480.0,0.15992446]
[1754251768590,3.34748004,114490.0,114480.0,0.02660446]
[1754251769242,3.37375404,114490.0,114480.0,0.02660446]
[1754251769455,3.37375404,114490.0,114480.0,0.004]
[1754251769642,3.37375404,114490.0,114480.0,0.02260446]
[1754251770060,3.37375404,114490.0,114480.0,0.02460446]
[1754251770261,3.38742988,114490.0,114480.0,0.02460446]
[1754251770690,2.63811259,114490.0,114480.0,0.02460446]
[1754251773083,2.63811259,114490.0,114480.0,0.002]
[1754251773295,2.63811259,114490.0,114480.0,0.02460446]
[1754251779537,2.61183859,114490.0,114480.0,0.02460446]
[1754251779743,2.61183368,114490.0,114480.0,0.02460446]
[1754251782479,2.40105168,114490.0,114480.0,0.02460446]
[1754251782885,2.36695168,114490.0,114480.0,0.02460446]
[1754251783283,2.3398095,114490.0,114480.0,0.10765446]
[1754251784172,2.31288023,114490.0,114480.0,0.10978446]
[1754251785621,2.31287738,114490.0,114480.0,0.10978446]
[1754251785830,2.29920154,114490.0,114480.0,0.10978446]
[1754251788098,1.95920154,114490.0,114480.0,0.10978446]
[1754251788438,1.95920044,114490.0,114480.0,0.10978446]
[1754251790091,1.97287621,114490.0,114480.0,0.10978446]
[1754251790703,2.72231994,114490.0,114480.0,0.10978446]
[1754251791544,3.06231994,114490.0,114480.0,0.10978446]
[1754251794975,3.04864417,114490.0,114480.0,0.10978446]
[1754251798386,3.0623199,114490.0,114480.0,0.10978446]
[1754251801405,3.0623199,114490.0,114480.0,0.10765446]
[1754251804064,3.0623199,114490.0,114480.0,0.10978446]
[1754251804457,1.71320544,114490.0,114480.0,0.10978446]
[1754251804661,3.0623199,114490.0,114480.0,0.10978446]
[1754251804875,3.06233034,114490.0,114480.0,0.10978446]
[1754251805988,3.04865461,114490.0,114480.0,0.10978446]
[1754251806694,1.69954015,114490.0,114480.0,0.10978446]
[1754251806907,3.04865461,114490.0,114480.0,0.10978446]
[1754251810018,3.06233033,114490.0,114480.0,0.10978446]
[1754251813420,3.06236585,114490.0,114480.0,0.10978446]
[1754251815130,3.04869013,114490.0,114480.0,0.10978446]
[1754251816284,3.04869038,114490.0,114480.0,0.10978446]
[1754251818487,3.0623659,114490.0,114480.0,0.10978446]
[1754251819385,3.0623659,114490.0,114480.0,0.10734446]
[1754251822284,3.0623719,114490.0,114480.0,0.10734446]
[1754251823642,2.8685765,114490.0,114480.0,0.10734446]
[1754251823863,2.8685759,114490.0,114480.0,0.10734446]
[1754251825181,2.86858986,114490.0,114480.0,0.10734446]
[1754251825971,2.85491434,114490.0,114480.0,0.10734446]
[1754251828100,2.85491188,114490.0,114480.0,0.10734446]
[1754251828924,2.86858774,114490.0,114480.0,0.10734446]
[1754251832960,1.51947328,114490.0,114480.0,0.10734446]
[1754251833157,2.86858774,114490.0,114480.0,0.10734446]
[1754251833874,2.86859292,114490.0,114480.0,0.10734446]
[1754251836026,2.85491706,114490.0,114480.0,0.10521446]
[1754251836700,2.88661706,114490.0,114480.0,0.02216446]
[1754251836945,1.341868,114470.0,114460.0,0.08393498]
[1754251837151,1.49755815,114470.0,114460.0,0.08090251]
[1754251837365,2.18027294,114470.0,114460.0,0.10306697]
[1754251837588,2.18027294,114470.0,114460.0,0.02678697]
[1754251837851,2.23825194,114470.0,114460.0,0.02678697]
[1754251839154,2.23825194,114470.0,114460.0,0.02778697]
[1754251840229,2.25193046,114470.0,114460.0,0.02778697]
[1754251840637,2.22023046,114470.0,114460.0,0.02778697]
[1754251842656,2.21201637,114470.0,114460.0,0.02778697]
[1754251842844,2.2201595,114470.0,114460.0,0.10679697]
[1754251843465,2.22015829,114470.0,114460.0,0.10679697]
[1754251844116,2.22015829,114470.0,114460.0,0.02778697]
[1754251844117,2.25110829,114470.0,114460.0,0.02778697]
[1754251845019,2.22015829,114470.0,114460.0,0.02778697]
[1754251845237,2.20647977,114470.0,114460.0,0.02778697]
[1754251847865,2.20647977,114470.0,114460.0,0.10999697]
[1754251848686,2.20646423,114470.0,114460.0,0.10999697]
[1754251849546,2.22014301,114470.0,114460.0,0.10999697]
[1754251855899,2.20646423,114470.0,114460.0,0.10999697]
[1754251856114,2.20646423,114470.0,114460.0,0.11209697]
[1754251857390,1.531907,114470.0,114460.0,0.11209697]
[1754251857634,2.19833067,114470.0,114460.0,0.11209697]
[1754251857844,2.17205167,114470.0,114460.0,0.11209697]
[1754251860295,2.18572981,114470.0,114460.0,0.11209697]
[1754251864925,2.18573194,114470.0,114460.0,0.11209697]
[1754251865399,2.18573699,114470.0,114460.0,0.11209697]
[1754251865851,2.17205885,114470.0,114460.0,0.11209697]
[1754251866307,2.18020889,114470.0,114460.0,0.11209697]
[1754251870368,2.06064693,114470.0,114460.0,0.11209697]
[1754251870638,2.19384693,114470.0,114460.0,0.11209697]
[1754251870891,2.19386552,114470.0,114460.0,0.11209697]
[1754251873782,2.19386446,114470.0,114460.0,0.11209697]
[1754251873991,2.19386446,114470.0,114460.0,0.13709697]
[1754251873992,1.38610723,114470.0,114460.0,0.13709697]
[1754251874200,1.03795758,114470.0,114460.0,0.13709697]
[1754251874409,1.71251481,114470.0,114460.0,0.13709697]
[1754251874627,1.03184534,114470.0,114460.0,0.13709697]
[1754251874842,1.70640257,114470.0,114460.0,0.13709697]
[1754251875941,1.69272453,114470.0,114460.0,0.13709697]
[1754251876148,1.82592453,114470.0,114460.0,0.13609697]
[1754251876357,1.80962523,114470.0,114460.0,0.13809697]
[1754251876807,1.80962523,114470.0,114460.0,0.14109697]
[1754251885312,1.82592231,114470.0,114460.0,0.14109697]
[1754251887296,1.8320352,114470.0,114460.0,0.13961697]
[1754251890281,1.84571235,114470.0,114460.0,0.13961697]
[1754251894979,1.8320352,114470.0,114460.0,0.13961697]
[1754251896868,1.80962523,114470.0,114460.0,0.13961697]
[1754251897065,1.83204191,114470.0,114460.0,0.13961697]
[1754251898362,1.83204276,114470.0,114460.0,0.13961697]
[1754251899336,1.64186476,114470.0,114460.0,0.13961697]
[1754251904223,0.96730753,114470.0,114460.0,0.13961697]
[1754251904423,1.64186476,114470.0,114460.0,0.13961697]
[1754251904855,1.57557423,114470.0,114460.0,0.13751697]
[1754251906267,1.57557423,114470.0,114460.0,0.11251697]
[1754251906484,1.63775289,114470.0,114460.0,0.00814251]
[1754251906709,1.66505864,114470.0,114460.0,0.00814251]
[1754251907764,1.66505864,114470.0,114460.0,0.00614251]
[1754251908484,1.66505864,114470.0,114460.0,0.03114251]
[1754251909102,1.66505864,114470.0,114460.0,0.02814251]
[1754251909494,1.66505864,114470.0,114460.0,0.00314251]
[1754251909960,2.00505864,114470.0,114460.0,0.02530697]
[1754251910165,2.01873648,114470.0,114460.0,0.02530697]
[1754251911482,2.01873116,114470.0,114460.0,0.02530697]
[1754251913377,2.01057709,114470.0,114460.0,0.02530697]
[1754251914175,1.98327134,114470.0,114460.0,0.02530697]
[1754251914748,1.30871411,114470.0,114460.0,0.05030697]
[1754251914932,1.98327134,114470.0,114460.0,0.05030697]
[1754251915586,1.98327134,114470.0,114460.0,0.02530697]
[1754251916037,1.9695935,114470.0,114460.0,0.02530697]
[1754251916249,2.67145648,114470.0,114460.0,0.00314251]
[1754251916457,2.67960848,114470.0,114460.0,0.00314251]
[1754251916688,2.70588848,114470.0,114460.0,0.02530697]
[1754251916899,2.03744535,114470.0,114460.0,0.02530697]
[1754251917128,2.71200258,114470.0,114460.0,0.02530697]
[1754251917379,2.72830675,114470.0,114460.0,0.02530697]
[1754251917992,2.701001,114470.0,114460.0,0.02530697]
[1754251919183,2.701001,114470.0,114460.0,0.00314251]
[1754251919385,2.701001,114470.0,114460.0,0.02530697]
[1754251920308,2.71468007,114470.0,114460.0,0.02530697]
[1754251921704,2.04012284,114470.0,114460.0,0.02530697]
[1754251922532,2.71468007,114470.0,114460.0,0.00314251]
[1754251922706,2.71468007,114470.0,114460.0,0.02530697]
[1754251925015,2.71466487,114470.0,114460.0,0.02530697]
[1754251926052,2.7009858,114470.0,114460.0,0.02530697]
[1754251927511,2.72829155,114470.0,114460.0,0.02530697]
[1754251928408,2.72929155,114470.0,114460.0,0.02530697]
[1754251928623,2.73029155,114470.0,114460.0,0.02530697]
[1754251929251,2.73029155,114470.0,114460.0,0.00314251]
[1754251929450,2.73029155,114470.0,114460.0,0.02530697]
[1754251929900,2.00133857,114470.0,114460.0,0.02530697]
[1754251930093,1.9744093,114470.0,114460.0,0.02530697]
[1754251930277,1.98808834,114470.0,114460.0,0.02530697]
[1754251930811,2.66264557,114470.0,114460.0,0.02530697]
[1754251935069,2.64896653,114470.0,114460.0,0.02530697]
[1754251935307,2.64896653,114470.0,114460.0,0.10079697]
[1754251936829,2.64081453,114470.0,114460.0,0.10079697]
[1754251937036,2.64895753,114470.0,114460.0,0.10079697]
[1754251938189,2.64895509,114470.0,114460.0,0.10079697]
[1754251938405,2.66263394,114470.0,114460.0,0.10079697]
[1754251939426,2.68956321,114470.0,114460.0,0.10079697]
[1754251939625,2.6895656,114470.0,114460.0,0.10079697]
[1754251942717,2.68956932,114470.0,114460.0,0.10079697]
[1754251942918,2.68956932,114470.0,114460.0,0.10384697]
[1754251945514,2.70836054,114470.0,114460.0,0.10384697]
[1754251946421,2.79331551,114470.0,114460.0,0.10384697]
[1754251946613,2.79331551,114470.0,114460.0,0.10079697]
[1754251947259,2.79331551,114470.0,114460.0,0.07863251]
[1754251947468,2.70836054,114470.0,114460.0,0.10079697]
[1754251948521,2.70836054,114470.0,114460.0,0.02530697]
[1754251951148,2.70837922,114470.0,114460.0,0.02530697]
[1754251953068,2.70837922,114470.0,114460.0,0.00314251]
[1754251953278,2.70837922,114470.0,114460.0,0.00134251]
[1754251953279,2.77920399,114470.0,114460.0,0.00134251]
[1754251953759,6.42604373,114460.0,114450.0,0.11437256]
[1754251954012,6.60851235,114460.0,114450.0,0.11437256]
[1754251954900,6.63479535,114460.0,114450.0,0.11437256]
[1754251955340,6.61600413,114460.0,114450.0,0.11437256]
[1754251956385,6.62968447,114460.0,114450.0,0.11437256]
[1754251956840,6.61336499,114460.0,114450.0,0.11437256]
[1754251957045,6.62967789,114460.0,114450.0,0.11437256]
[1754251957672,6.62967789,114460.0,114450.0,0.11645256]
[1754251957894,6.63067789,114460.0,114450.0,0.11645256]
[1754251958043,6.63167789,114460.0,114450.0,0.11645256]
[1754251959643,6.61799755,114460.0,114450.0,0.11645256]
[1754251959856,6.61799415,114460.0,114450.0,0.11645256]
[1754251962773,6.63167422,114460.0,114450.0,0.11645256]
[1754251963444,6.64912324,114460.0,114450.0,0.03583256]
[1754251963693,6.64912324,114460.0,114450.0,0.11329256]
[1754251966554,6.63544317,114460.0,114450.0,0.11329256]
[1754251968578,7.07914317,114460.0,114450.0,0.11329256]
[1754251969411,7.0928234,114460.0,114450.0,0.11329256]
[1754251972280,7.06589413,114460.0,114450.0,0.11329256]
[1754251974337,7.0658861,114460.0,114450.0,0.11329256]
[1754251977206,7.06588957,114460.0,114450.0,0.11329256]
[1754251979699,7.07100288,114460.0,114450.0,0.11329256]
[1754251980455,7.07100288,114460.0,114450.0,0.03583256]
[1754251981156,7.07100288,114460.0,114450.0,0.0881681]
[1754251981571,7.07100288,114460.0,114450.0,0.0911281]
[1754251981778,7.07100288,114460.0,114450.0,0.11329256]
[1754251982224,7.07100288,114460.0,114450.0,0.0911281]
[1754251982435,7.47502904,114460.0,114450.0,0.0136681]
[1754251983937,7.50195585,114460.0,114450.0,0.0136681]
[1754251984505,7.4746501,114460.0,114450.0,0.0136681]
[1754251984911,7.47464993,114460.0,114450.0,0.0136681]
[1754251985108,7.44772312,114460.0,114450.0,0.0136681]
[1754251986987,7.42468312,114460.0,114450.0,0.0136681]
[1754251987206,7.29160312,114460.0,114450.0,0.0932281]
[1754251987409,7.42460312,114460.0,114450.0,0.0932281]
[1754251988451,6.73259687,114460.0,114450.0,0.0932281]
[1754251988660,7.4071541,114460.0,114450.0,0.0932281]
[1754251990096,7.2741541,114460.0,114450.0,0.0932281]
[1754251990330,7.4071541,114460.0,114450.0,0.0932281]
[1754251990744,7.40714929,114460.0,114450.0,0.0932281]
[1754251995041,7.25535575,114460.0,114450.0,0.0932281]
[1754251995265,6.71379852,114460.0,114450.0,0.11539256]
[1754251995472,7.38835575,114460.0,114450.0,0.11539256]
[1754251999650,7.19904875,114460.0,114450.0,0.11539256]
[1754252002553,7.18536834,114460.0,114450.0,0.11539256]
[1754252002757,7.18536803,114460.0,114450.0,0.11539256]
[1754252005446,7.19904813,114460.0,114450.0,0.11539256]
[1754252005941,7.19904813,114460.0,114450.0,0.11329256]
[1754252008877,7.18536803,114460.0,114450.0,0.11329256]
[1754252009071,6.97039767,114460.0,114450.0,0.11329256]
[1754252009290,6.99668067,114460.0,114450.0,0.11329256]
[1754252009491,6.86368067,114460.0,114450.0,0.11526256]
[1754252009737,6.99664067,114460.0,114450.0,0.11526256]
[1754252011667,7.0103208,114460.0,114450.0,0.11526256]
[1754252014550,5.66120634,114460.0,114450.0,0.11526256]
[1754252014731,7.0103208,114460.0,114450.0,0.11526256]
[1754252015704,6.99664067,114460.0,114450.0,0.11526256]
[1754252017005,6.9966437,114460.0,114450.0,0.11526256]
[1754252017470,5.48828624,114460.0,114450.0,0.11526256]
[1754252017687,6.29576347,114460.0,114450.0,0.14026256]
[1754252018814,5.2312736,114460.0,114450.0,0.14026256]
[1754252019041,6.03875083,114460.0,114450.0,0.14126256]
[1754252019254,6.03875083,114460.0,114450.0,0.14226256]
[1754252020148,5.3641936,114460.0,114450.0,0.14226256]
[1754252020362,5.35604125,114460.0,114450.0,0.14226256]
[1754252020590,6.03059848,114460.0,114450.0,0.14226256]
[1754252021507,1.16990548,114460.0,114450.0,0.14226256]
[1754252023268,1.14747723,114460.0,114450.0,0.14226256]
[1754252024094,0.47292,114460.0,114450.0,0.14226256]
[1754252024325,1.14747723,114460.0,114450.0,0.14226256]
[1754252024551,0.01376237,114470.0,114450.0,0.81681979]
[1754252024818,5.01348499,114470.0,114460.0,0.12261446]
[1754252025003,6.0219326,114470.0,114460.0,0.12477446]
[1754252026750,5.34737537,114470.0,114460.0,0.12477446]
[1754252026901,0.48668237,114470.0,114460.0,0.12477446]
[1754252027712,0.48668237,114470.0,114460.0,0.12577446]
[1754252028321,0.48668237,114470.0,114460.0,0.12477446]
[1754252028551,0.48668237,114470.0,114460.0,0.12677446]
[1754252028759,0.48668237,114470.0,114460.0,0.12877446]
[1754252029669,0.35376237,114470.0,114460.0,0.12877446]
[1754252029908,0.34008314,114470.0,114460.0,0.12677446]
[1754252030566,0.34008314,114470.0,114460.0,0.12977446]
[1754252032338,4.860693,114470.0,114460.0,0.12977446]
[1754252032987,0.01367707,114470.0,114460.0,0.12977446]
[1754252033250,0.01367707,114470.0,114460.0,0.13195862]
[1754252039316,5.93317203,114480.0,114470.0,0.02216446]
[1754252039568,5.95557974,114480.0,114470.0,0.09761446]